[Event "Late-Titled-Tuesday-Blitz-February-06-2024"]
[Site "Chess.com"]
[Date "2024.02.06"]
[Round "10"]
[White "igorkovalenko"]
[Black "AlexeiShirov"]
[Result "0-1"]
[WhiteElo "2995"]
[BlackElo "2831"]
[TimeControl "180+1"]
[EndTime "15:54:58 PST"]
[Termination "AlexeiShirov won by resignation"]

1. c4 {[%clk 0:03:00.9]} 1... c6 {[%clk 0:02:59]} 2. Nf3 {[%clk 0:02:57.8]} 2...
d5 {[%clk 0:02:59.2]} 3. e3 {[%clk 0:02:58]} 3... Nf6 {[%clk 0:02:59.2]} 4. Nc3
{[%clk 0:02:58.7]} 4... Nbd7 {[%clk 0:02:58.4]} 5. Qc2 {[%clk 0:02:58.3]} 5...
e5 {[%clk 0:02:57.6]} 6. cxd5 {[%clk 0:02:58.7]} 6... Nxd5 {[%clk 0:02:57.6]} 7.
Be2 {[%clk 0:02:52.1]} 7... Bd6 {[%clk 0:02:55]} 8. O-O {[%clk 0:02:52]} 8...
O-O {[%clk 0:02:54.3]} 9. a3 {[%clk 0:02:51.3]} 9... N7f6 {[%clk 0:02:52.4]} 10.
d3 {[%clk 0:02:50.6]} 10... Bg4 {[%clk 0:02:45.6]} 11. h3 {[%clk 0:02:50.5]}
11... Bh5 {[%clk 0:02:45.5]} 12. Bd2 {[%clk 0:02:50.4]} 12... Nd7 {[%clk
0:02:33.3]} 13. Ne4 {[%clk 0:02:46]} 13... Be7 {[%clk 0:02:31.1]} 14. Ng3 {[%clk
0:02:46.6]} 14... Bg6 {[%clk 0:02:30.4]} 15. Rad1 {[%clk 0:02:41.1]} 15... Rc8
{[%clk 0:02:15.6]} 16. Qc1 {[%clk 0:02:37.6]} 16... c5 {[%clk 0:02:14.6]} 17. b3
{[%clk 0:02:27.6]} 17... f6 {[%clk 0:02:12.7]} 18. Qb2 {[%clk 0:02:25.6]} 18...
Bf7 {[%clk 0:02:05.7]} 19. Nf5 {[%clk 0:02:21.1]} 19... Be6 {[%clk 0:02:02.3]}
20. Nxe7+ {[%clk 0:02:20.6]} 20... Qxe7 {[%clk 0:02:02]} 21. Rc1 {[%clk
0:02:21.1]} 21... Rc6 {[%clk 0:01:58.8]} 22. b4 {[%clk 0:02:19.6]} 22... Rfc8
{[%clk 0:01:54.8]} 23. b5 {[%clk 0:02:08]} 23... Rd6 {[%clk 0:01:54.6]} 24. Rfd1
{[%clk 0:02:02.3]} 24... Bf7 {[%clk 0:01:53.8]} 25. Be1 {[%clk 0:02:01.5]} 25...
Re8 {[%clk 0:01:41.1]} 26. Nd2 {[%clk 0:02:01.6]} 26... f5 {[%clk 0:01:40.2]}
27. Nc4 {[%clk 0:01:30.4]} 27... Rg6 {[%clk 0:01:39.8]} 28. Bf1 {[%clk
0:01:29.7]} 28... f4 {[%clk 0:01:38.4]} 29. Bd2 {[%clk 0:01:17.2]} 29... f3
{[%clk 0:01:35.8]} 30. g3 {[%clk 0:01:17.5]} 30... Qh4 {[%clk 0:01:26]} 31. Kh2
{[%clk 0:01:17.2]} 31... Qh5 {[%clk 0:01:24.9]} 32. e4 {[%clk 0:01:08]} 32...
N5f6 {[%clk 0:01:18]} 33. Ne3 {[%clk 0:01:00.4]} 33... Be6 {[%clk 0:01:17.6]}
34. Nf5 {[%clk 0:00:55.8]} 34... Bxf5 {[%clk 0:01:08.5]} 35. exf5 {[%clk
0:00:56.7]} 35... Qxf5 {[%clk 0:01:07.7]} 36. Rc4 {[%clk 0:00:55.9]} 36... Nb6
{[%clk 0:00:56.2]} 37. Rxc5 {[%clk 0:00:49.1]} 37... Qh5 {[%clk 0:00:46.9]} 38.
Re1 {[%clk 0:00:33.8]} 38... Kh8 {[%clk 0:00:38.6]} 39. Kg1 {[%clk 0:00:25.3]}
39... Qh4 {[%clk 0:00:36.8]} 40. Kh2 {[%clk 0:00:18.4]} 40... Ng4+ {[%clk
0:00:36.1]} 41. Kg1 {[%clk 0:00:18.6]} 41... Nxf2 {[%clk 0:00:35.8]} 42. Kxf2
{[%clk 0:00:09.6]} 42... Qxg3+ {[%clk 0:00:35]} 43. Ke3 {[%clk 0:00:10.1]} 43...
Qf4+ {[%clk 0:00:34.1]} 44. Kf2 {[%clk 0:00:10.6]} 44... Qg3+ {[%clk 0:00:34.1]}
45. Ke3 {[%clk 0:00:11.1]} 45... f2+ {[%clk 0:00:33.8]} 46. Ke2 {[%clk
0:00:11.4]} 46... Rf6 {[%clk 0:00:26.4]} 47. Bb4 {[%clk 0:00:04]} 47... fxe1=Q+
{[%clk 0:00:24.7]} 48. Bxe1 {[%clk 0:00:03.6]} 48... Qh2+ {[%clk 0:00:24.3]} 49.
Kd1 {[%clk 0:00:04.2]} 49... Qxb2 {[%clk 0:00:24]} 0-1

[Event "Late-Titled-Tuesday-Blitz-February-06-2024"]
[Site "Chess.com"]
[Date "2024.02.06"]
[Round "10"]
[White "Ticondriul"]
[Black "Fandorine"]
[Result "0-1"]
[WhiteElo "2742"]
[BlackElo "2936"]
[TimeControl "180+1"]
[EndTime "15:55:02 PST"]
[Termination "Fandorine won on time"]

1. d4 {[%clk 0:02:58.5]} 1... Nf6 {[%clk 0:02:58.9]} 2. Nf3 {[%clk 0:02:49.1]}
2... d5 {[%clk 0:02:58.3]} 3. e3 {[%clk 0:02:45.2]} 3... c6 {[%clk 0:02:57]} 4.
Bd3 {[%clk 0:02:41.8]} 4... Bg4 {[%clk 0:02:56.7]} 5. h3 {[%clk 0:02:37.7]} 5...
Bh5 {[%clk 0:02:56.5]} 6. O-O {[%clk 0:02:28.2]} 6... Nbd7 {[%clk 0:02:55.9]} 7.
c4 {[%clk 0:02:19.3]} 7... e6 {[%clk 0:02:28.6]} 8. b3 {[%clk 0:02:16.5]} 8...
Ne4 {[%clk 0:02:23.2]} 9. Bb2 {[%clk 0:02:14.4]} 9... f5 {[%clk 0:02:22]} 10.
Nbd2 {[%clk 0:02:13.7]} 10... Bd6 {[%clk 0:02:21.9]} 11. Qc2 {[%clk 0:02:13]}
11... O-O {[%clk 0:02:17.9]} 12. Ne5 {[%clk 0:02:08.8]} 12... Nxe5 {[%clk
0:02:06.4]} 13. dxe5 {[%clk 0:02:08.6]} 13... Bb4 {[%clk 0:02:03.6]} 14. Nxe4
{[%clk 0:02:04.2]} 14... fxe4 {[%clk 0:02:04.5]} 15. Be2 {[%clk 0:02:05.1]}
15... Bxe2 {[%clk 0:02:03]} 16. Qxe2 {[%clk 0:02:04.9]} 16... Qg5 {[%clk
0:02:03.9]} 17. cxd5 {[%clk 0:01:48.3]} 17... exd5 {[%clk 0:02:03.7]} 18. Qg4
{[%clk 0:01:25]} 18... Qf5 {[%clk 0:01:36.3]} 19. Qxf5 {[%clk 0:01:15.2]} 19...
Rxf5 {[%clk 0:01:35.5]} 20. f4 {[%clk 0:01:16.1]} 20... exf3 {[%clk 0:01:33.1]}
21. gxf3 {[%clk 0:01:17]} 21... Raf8 {[%clk 0:01:21.9]} 22. Kg2 {[%clk
0:01:03.4]} 22... Kf7 {[%clk 0:01:16.1]} 23. f4 {[%clk 0:00:57]} 23... Ke6
{[%clk 0:01:15.5]} 24. Rf3 {[%clk 0:00:57.3]} 24... g5 {[%clk 0:01:10.3]} 25.
Raf1 {[%clk 0:00:56.9]} 25... Be7 {[%clk 0:00:44.4]} 26. Bc1 {[%clk 0:00:43.8]}
26... a6 {[%clk 0:00:42.8]} 27. R1f2 {[%clk 0:00:34.1]} 27... R8f7 {[%clk
0:00:33.4]} 28. Kf1 {[%clk 0:00:32]} 28... Bc5 {[%clk 0:00:29]} 29. Ke2 {[%clk
0:00:31.7]} 29... gxf4 {[%clk 0:00:28.5]} 30. Rxf4 {[%clk 0:00:30]} 30... Kxe5
{[%clk 0:00:27.1]} 31. Bb2+ {[%clk 0:00:21.9]} 31... Ke6 {[%clk 0:00:27.3]} 32.
Rxf5 {[%clk 0:00:18]} 32... Rxf5 {[%clk 0:00:28.2]} 33. Rg2 {[%clk 0:00:18.3]}
33... Rh5 {[%clk 0:00:27.8]} 34. Rg3 {[%clk 0:00:18.1]} 34... Bd6 {[%clk
0:00:27.4]} 35. Rf3 {[%clk 0:00:17]} 35... Rf5 {[%clk 0:00:27.1]} 36. Rxf5
{[%clk 0:00:13.3]} 36... Kxf5 {[%clk 0:00:28]} 37. Kf3 {[%clk 0:00:14.2]} 37...
b5 {[%clk 0:00:25.5]} 38. Bc3 {[%clk 0:00:11.8]} 38... h5 {[%clk 0:00:24.9]} 39.
Be1 {[%clk 0:00:11.5]} 39... c5 {[%clk 0:00:24.9]} 40. Bc3 {[%clk 0:00:10.7]}
40... c4 {[%clk 0:00:25.4]} 41. bxc4 {[%clk 0:00:11.3]} 41... dxc4 {[%clk
0:00:24.3]} 42. e4+ {[%clk 0:00:10]} 42... Ke6 {[%clk 0:00:25]} 43. Ke3 {[%clk
0:00:08.4]} 43... Bc5+ {[%clk 0:00:24.1]} 44. Kf4 {[%clk 0:00:08.5]} 44... b4
{[%clk 0:00:24.6]} 45. Bd2 {[%clk 0:00:08.4]} 45... a5 {[%clk 0:00:21.6]} 0-1

[Event "Late-Titled-Tuesday-Blitz-February-06-2024"]
[Site "Chess.com"]
[Date "2024.02.06"]
[Round "10"]
[White "ansko1999"]
[Black "K_A_S_T_O_R"]
[Result "0-1"]
[WhiteElo "2689"]
[BlackElo "2874"]
[TimeControl "180+1"]
[EndTime "15:55:04 PST"]
[Termination "K_A_S_T_O_R won by checkmate"]

1. Nf3 {[%clk 0:03:00.9]} 1... c5 {[%clk 0:02:59.1]} 2. e4 {[%clk 0:02:59.4]}
2... d6 {[%clk 0:02:58.9]} 3. Bb5+ {[%clk 0:02:59]} 3... Nc6 {[%clk 0:02:58.5]}
4. O-O {[%clk 0:02:58.6]} 4... Bd7 {[%clk 0:02:58.6]} 5. Re1 {[%clk 0:02:58.9]}
5... Nf6 {[%clk 0:02:59.1]} 6. c3 {[%clk 0:02:59.1]} 6... a6 {[%clk 0:02:59.2]}
7. Bc4 {[%clk 0:02:59]} 7... Bg4 {[%clk 0:02:53.8]} 8. d4 {[%clk 0:02:57.3]}
8... e6 {[%clk 0:02:50.4]} 9. d5 {[%clk 0:02:34.1]} 9... Bxf3 {[%clk 0:02:47.2]}
10. gxf3 {[%clk 0:02:29.1]} 10... Ne5 {[%clk 0:02:46.7]} 11. Bf1 {[%clk
0:02:21.9]} 11... exd5 {[%clk 0:02:42.7]} 12. f4 {[%clk 0:02:19.5]} 12... Ng6
{[%clk 0:02:36.9]} 13. e5 {[%clk 0:02:16.6]} 13... dxe5 {[%clk 0:02:34.4]} 14.
fxe5 {[%clk 0:02:17.5]} 14... Ne4 {[%clk 0:02:28.7]} 15. c4 {[%clk 0:02:09.8]}
15... Qh4 {[%clk 0:02:22.9]} 16. Qe2 {[%clk 0:01:31]} 16... Nxe5 {[%clk
0:01:53.2]} 17. cxd5 {[%clk 0:01:20.2]} 17... f5 {[%clk 0:01:50.3]} 18. Nc3
{[%clk 0:01:15.1]} 18... O-O-O {[%clk 0:01:41.1]} 19. Nxe4 {[%clk 0:01:01.9]}
19... fxe4 {[%clk 0:01:41.1]} 20. Qxe4 {[%clk 0:01:00.9]} 20... Qxe4 {[%clk
0:01:24.4]} 21. Rxe4 {[%clk 0:01:01.8]} 21... Bd6 {[%clk 0:01:24.9]} 22. Bh3+
{[%clk 0:00:57.4]} 22... Kc7 {[%clk 0:01:22.9]} 23. Kg2 {[%clk 0:00:44]} 23...
Nd3 {[%clk 0:01:15.7]} 24. Bg5 {[%clk 0:00:39.3]} 24... Rdf8 {[%clk 0:01:13.4]}
25. Re2 {[%clk 0:00:36.3]} 25... h6 {[%clk 0:01:09.7]} 26. Be3 {[%clk
0:00:35.7]} 26... Rf6 {[%clk 0:01:03.5]} 27. Rd1 {[%clk 0:00:34.7]} 27... c4
{[%clk 0:01:02.1]} 28. b3 {[%clk 0:00:27.9]} 28... Nf4+ {[%clk 0:00:58.6]} 29.
Bxf4 {[%clk 0:00:27.5]} 29... Rxf4 {[%clk 0:00:59.2]} 30. bxc4 {[%clk
0:00:25.3]} 30... Rxc4 {[%clk 0:00:59.1]} 31. Rdd2 {[%clk 0:00:20.1]} 31... b5
{[%clk 0:00:53.4]} 32. Rc2 {[%clk 0:00:20.4]} 32... Kb6 {[%clk 0:00:53.5]} 33.
Be6 {[%clk 0:00:18.4]} 33... Rf8 {[%clk 0:00:52.6]} 34. Rcd2 {[%clk 0:00:13.7]}
34... Kc5 {[%clk 0:00:51]} 35. h3 {[%clk 0:00:14.1]} 35... Rc3 {[%clk
0:00:46.6]} 36. Rc2 {[%clk 0:00:13.4]} 36... b4 {[%clk 0:00:47.2]} 37. Rcd2
{[%clk 0:00:13.9]} 37... a5 {[%clk 0:00:47.2]} 38. Bg4 {[%clk 0:00:11.5]} 38...
g6 {[%clk 0:00:46.9]} 39. Re6 {[%clk 0:00:10.1]} 39... h5 {[%clk 0:00:46.9]} 40.
Bd1 {[%clk 0:00:10.3]} 40... Bf4 {[%clk 0:00:40.5]} 41. Rde2 {[%clk 0:00:05.5]}
41... g5 {[%clk 0:00:33.2]} 42. Bb3 {[%clk 0:00:03.2]} 42... g4 {[%clk
0:00:30.2]} 43. hxg4 {[%clk 0:00:04.1]} 43... h4 {[%clk 0:00:30.7]} 44. Rc6+
{[%clk 0:00:03.3]} 44... Kd4 {[%clk 0:00:30.9]} 45. Rxc3 {[%clk 0:00:04.2]}
45... bxc3 {[%clk 0:00:31.4]} 46. Kh3 {[%clk 0:00:04]} 46... Bg5 {[%clk
0:00:30]} 47. Rc2 {[%clk 0:00:03.4]} 47... Rf3+ {[%clk 0:00:28.9]} 48. Kg2
{[%clk 0:00:03.9]} 48... Rd3 {[%clk 0:00:29.4]} 49. d6 {[%clk 0:00:03.9]} 49...
h3+ {[%clk 0:00:29.4]} 50. Kh2 {[%clk 0:00:03.8]} 50... Bf4+ {[%clk 0:00:29.5]}
51. Kg1 {[%clk 0:00:01.3]} 51... Rd1# {[%clk 0:00:29.5]} 0-1

[Event "Late-Titled-Tuesday-Blitz-February-06-2024"]
[Site "Chess.com"]
[Date "2024.02.06"]
[Round "10"]
[White "Baronessa08"]
[Black "dedpihto_v_kozhanom_palto"]
[Result "0-1"]
[WhiteElo "2539"]
[BlackElo "2708"]
[TimeControl "180+1"]
[EndTime "15:55:04 PST"]
[Termination "dedpihto_v_kozhanom_palto won on time"]

1. Nf3 {[%clk 0:03:00.9]} 1... g6 {[%clk 0:02:58.6]} 2. g3 {[%clk 0:02:59]} 2...
Bg7 {[%clk 0:02:59.2]} 3. Bg2 {[%clk 0:02:53]} 3... Nf6 {[%clk 0:03:00.1]} 4. c4
{[%clk 0:02:51.7]} 4... O-O {[%clk 0:03:01]} 5. d4 {[%clk 0:02:51.4]} 5... d6
{[%clk 0:03:01.1]} 6. O-O {[%clk 0:02:50.7]} 6... Nc6 {[%clk 0:02:59.4]} 7. Nc3
{[%clk 0:02:45.9]} 7... Bg4 {[%clk 0:02:59.8]} 8. b3 {[%clk 0:02:34.5]} 8...
Bxf3 {[%clk 0:02:58.7]} 9. Bxf3 {[%clk 0:02:34.1]} 9... Nd7 {[%clk 0:02:59.3]}
10. e3 {[%clk 0:02:23.5]} 10... e5 {[%clk 0:02:59.3]} 11. Ne2 {[%clk 0:02:19.9]}
11... Qf6 {[%clk 0:02:49.3]} 12. Bxc6 {[%clk 0:02:12.2]} 12... bxc6 {[%clk
0:02:50.2]} 13. Bb2 {[%clk 0:02:06.8]} 13... Qf3 {[%clk 0:02:44.6]} 14. Nc3
{[%clk 0:02:02.2]} 14... Qxd1 {[%clk 0:02:41.1]} 15. Rfxd1 {[%clk 0:01:59]}
15... Rab8 {[%clk 0:02:25.6]} 16. dxe5 {[%clk 0:01:32.3]} 16... Nxe5 {[%clk
0:02:26.5]} 17. Kg2 {[%clk 0:01:31.9]} 17... Nxc4 {[%clk 0:02:25.6]} 18. bxc4
{[%clk 0:01:08.8]} 18... Rxb2 {[%clk 0:02:26.5]} 19. Rdc1 {[%clk 0:01:04]} 19...
Rfb8 {[%clk 0:02:20.4]} 20. h4 {[%clk 0:00:54.2]} 20... h5 {[%clk 0:02:19.8]}
21. Kf3 {[%clk 0:00:51.1]} 21... Kf8 {[%clk 0:02:17.8]} 22. Ne4 {[%clk
0:00:45.2]} 22... R2b7 {[%clk 0:02:08.4]} 23. Nc3 {[%clk 0:00:43.8]} 23... Rb4
{[%clk 0:02:09.1]} 24. a3 {[%clk 0:00:37.6]} 24... Rxc4 {[%clk 0:02:05.7]} 25.
Ne2 {[%clk 0:00:34.1]} 25... Rxc1 {[%clk 0:02:01.2]} 26. Rxc1 {[%clk 0:00:34.6]}
26... c5 {[%clk 0:02:01.7]} 27. Nf4 {[%clk 0:00:33.7]} 27... c6 {[%clk
0:02:01.9]} 28. g4 {[%clk 0:00:32.2]} 28... hxg4+ {[%clk 0:02:01.4]} 29. Kxg4
{[%clk 0:00:33.1]} 29... Ke7 {[%clk 0:02:01.9]} 30. h5 {[%clk 0:00:32.7]} 30...
gxh5+ {[%clk 0:02:01.8]} 31. Nxh5 {[%clk 0:00:32.1]} 31... Bh8 {[%clk
0:01:53.2]} 32. Ng3 {[%clk 0:00:30.3]} 32... Ke6 {[%clk 0:01:46.2]} 33. f4
{[%clk 0:00:29]} 33... f5+ {[%clk 0:01:40.2]} 34. Kf3 {[%clk 0:00:25]} 34... Rb3
{[%clk 0:01:40.6]} 35. Rh1 {[%clk 0:00:20.5]} 35... Bf6 {[%clk 0:01:11.8]} 36.
Rh6 {[%clk 0:00:20.4]} 36... Rb8 {[%clk 0:01:10.6]} 37. Nh5 {[%clk 0:00:14.1]}
37... Rf8 {[%clk 0:01:11.1]} 38. Ng7+ {[%clk 0:00:14.5]} 38... Kd7 {[%clk
0:01:08.9]} 39. Nxf5 {[%clk 0:00:14.4]} 39... Rf7 {[%clk 0:01:07.4]} 40. e4
{[%clk 0:00:12]} 40... c4 {[%clk 0:01:07.7]} 41. Ke2 {[%clk 0:00:10.2]} 41... d5
{[%clk 0:00:58.5]} 42. Ng3 {[%clk 0:00:04.4]} 42... Be7 {[%clk 0:00:48.9]} 43.
f5 {[%clk 0:00:04]} 43... Bd6 {[%clk 0:00:43.8]} 44. Nh5 {[%clk 0:00:02.8]}
44... d4 {[%clk 0:00:36.8]} 45. f6 {[%clk 0:00:02.3]} 45... d3+ {[%clk
0:00:34.8]} 46. Kd2 {[%clk 0:00:02]} 46... Bxa3 {[%clk 0:00:35.4]} 47. Rg6
{[%clk 0:00:01.7]} 47... Bb4+ {[%clk 0:00:35.6]} 48. Ke3 {[%clk 0:00:01.6]}
48... Bc5+ {[%clk 0:00:35.4]} 49. Kf3 {[%clk 0:00:01.3]} 49... c3 {[%clk
0:00:33.3]} 50. Rg7 {[%clk 0:00:01.2]} 50... Ke6 {[%clk 0:00:27.5]} 0-1

[Event "Late-Titled-Tuesday-Blitz-February-06-2024"]
[Site "Chess.com"]
[Date "2024.02.06"]
[Round "10"]
[White "lucliasco"]
[Black "Mikhail_Golubev"]
[Result "1/2-1/2"]
[WhiteElo "2878"]
[BlackElo "2690"]
[TimeControl "180+1"]
[EndTime "15:55:05 PST"]
[Termination "Game drawn - insufficient material"]

1. e4 {[%clk 0:02:57.4]} 1... c5 {[%clk 0:02:59.8]} 2. Nc3 {[%clk 0:02:56.4]}
2... Nc6 {[%clk 0:02:58.9]} 3. Bb5 {[%clk 0:02:55.5]} 3... Nd4 {[%clk
0:02:58.1]} 4. Nf3 {[%clk 0:02:54.9]} 4... e6 {[%clk 0:02:57.9]} 5. Bd3 {[%clk
0:02:53.7]} 5... Nc6 {[%clk 0:02:55.2]} 6. O-O {[%clk 0:02:53.6]} 6... g6 {[%clk
0:02:53.5]} 7. Re1 {[%clk 0:02:51.6]} 7... Bg7 {[%clk 0:02:52.8]} 8. e5 {[%clk
0:02:51.7]} 8... d5 {[%clk 0:02:40.3]} 9. exd6 {[%clk 0:02:51.5]} 9... Qxd6
{[%clk 0:02:39.2]} 10. b3 {[%clk 0:02:48]} 10... Nf6 {[%clk 0:02:31.6]} 11. Bb2
{[%clk 0:02:48.2]} 11... O-O {[%clk 0:02:31.2]} 12. Ne4 {[%clk 0:02:42.8]} 12...
Nxe4 {[%clk 0:02:30.3]} 13. Bxg7 {[%clk 0:02:43.7]} 13... Kxg7 {[%clk
0:02:17.2]} 14. Bxe4 {[%clk 0:02:43.5]} 14... Bd7 {[%clk 0:02:16.5]} 15. Qc1
{[%clk 0:02:39.2]} 15... Rad8 {[%clk 0:02:13]} 16. Qb2+ {[%clk 0:02:38.8]} 16...
f6 {[%clk 0:02:07.2]} 17. d3 {[%clk 0:02:32.6]} 17... e5 {[%clk 0:02:03.2]} 18.
c3 {[%clk 0:02:32.5]} 18... b6 {[%clk 0:01:49]} 19. h3 {[%clk 0:02:29.5]} 19...
Rfe8 {[%clk 0:01:43.7]} 20. Rad1 {[%clk 0:02:27]} 20... Kg8 {[%clk 0:01:15.4]}
21. a3 {[%clk 0:02:21.2]} 21... f5 {[%clk 0:01:10.8]} 22. Bxc6 {[%clk
0:02:21.2]} 22... Bxc6 {[%clk 0:01:11.1]} 23. Qe2 {[%clk 0:02:22.1]} 23... Bxf3
{[%clk 0:01:05.5]} 24. Qxf3 {[%clk 0:02:21.5]} 24... Qd5 {[%clk 0:01:03.1]} 25.
Qxd5+ {[%clk 0:02:19.7]} 25... Rxd5 {[%clk 0:01:03.7]} 26. f4 {[%clk 0:02:20.6]}
26... Kf7 {[%clk 0:00:59.2]} 27. fxe5 {[%clk 0:02:19.9]} 27... Rdxe5 {[%clk
0:00:56.4]} 28. Rxe5 {[%clk 0:02:19.2]} 28... Rxe5 {[%clk 0:00:56.4]} 29. Kf2
{[%clk 0:02:20.1]} 29... Kf6 {[%clk 0:00:56.3]} 30. g3 {[%clk 0:02:17.9]} 30...
g5 {[%clk 0:00:54.5]} 31. b4 {[%clk 0:02:16.9]} 31... h5 {[%clk 0:00:51.5]} 32.
d4 {[%clk 0:02:14.7]} 32... Rd5 {[%clk 0:00:43.9]} 33. Ke3 {[%clk 0:02:14.7]}
33... cxd4+ {[%clk 0:00:41]} 34. Rxd4 {[%clk 0:02:12]} 34... Re5+ {[%clk
0:00:40.9]} 35. Kf2 {[%clk 0:02:06.7]} 35... Re7 {[%clk 0:00:33.1]} 36. c4
{[%clk 0:02:06.2]} 36... Ke5 {[%clk 0:00:30]} 37. Ke3 {[%clk 0:02:00]} 37... Rc7
{[%clk 0:00:23.5]} 38. Rd5+ {[%clk 0:01:57.2]} 38... Ke6 {[%clk 0:00:18.5]} 39.
Rd4 {[%clk 0:01:58.1]} 39... Ke5 {[%clk 0:00:18.4]} 40. h4 {[%clk 0:01:55.7]}
40... gxh4 {[%clk 0:00:15.7]} 41. Rxh4 {[%clk 0:01:53.7]} 41... Rg7 {[%clk
0:00:15.1]} 42. Kf3 {[%clk 0:01:54.2]} 42... Rd7 {[%clk 0:00:14.2]} 43. Ke3
{[%clk 0:01:52.8]} 43... Rg7 {[%clk 0:00:14.1]} 44. Kf2 {[%clk 0:01:52.6]} 44...
Rh7 {[%clk 0:00:12.1]} 45. a4 {[%clk 0:01:48.5]} 45... Rc7 {[%clk 0:00:11.5]}
46. Ke3 {[%clk 0:01:45.5]} 46... Rg7 {[%clk 0:00:11.2]} 47. Kf3 {[%clk
0:01:43.4]} 47... Rc7 {[%clk 0:00:11.2]} 48. a5 {[%clk 0:01:40.9]} 48... bxa5
{[%clk 0:00:10.5]} 49. bxa5 {[%clk 0:01:41.8]} 49... Rc5 {[%clk 0:00:09.3]} 50.
a6 {[%clk 0:01:40.4]} 50... Ra5 {[%clk 0:00:08.2]} 51. Rxh5 {[%clk 0:01:40.9]}
51... Ra3+ {[%clk 0:00:08]} 52. Kf2 {[%clk 0:01:39.2]} 52... Rxa6 {[%clk
0:00:06.6]} 53. g4 {[%clk 0:01:39.7]} 53... Kd4 {[%clk 0:00:05.4]} 54. Rxf5
{[%clk 0:01:37.1]} 54... Kxc4 {[%clk 0:00:05.6]} 55. Kg3 {[%clk 0:01:37.8]}
55... Kb4 {[%clk 0:00:04.7]} 56. g5 {[%clk 0:01:34.5]} 56... Rg6 {[%clk
0:00:04.6]} 57. Kg4 {[%clk 0:01:35.3]} 57... a5 {[%clk 0:00:04.6]} 58. Rf4+
{[%clk 0:01:22.7]} 58... Kb3 {[%clk 0:00:04.3]} 59. Rf3+ {[%clk 0:01:21.6]}
59... Kb4 {[%clk 0:00:04.5]} 60. Rf6 {[%clk 0:01:22.5]} 60... Rg8 {[%clk
0:00:03.8]} 61. Rb6+ {[%clk 0:01:22.4]} 61... Kc3 {[%clk 0:00:04]} 62. Ra6
{[%clk 0:01:21.7]} 62... Kb4 {[%clk 0:00:04.3]} 63. g6 {[%clk 0:01:22.3]} 63...
a4 {[%clk 0:00:03.1]} 64. Kf5 {[%clk 0:01:23.1]} 64... a3 {[%clk 0:00:03.4]} 65.
Rb6+ {[%clk 0:01:23.7]} 65... Kc3 {[%clk 0:00:03.3]} 66. Ra6 {[%clk 0:01:24.1]}
66... Kb3 {[%clk 0:00:03.7]} 67. Rb6+ {[%clk 0:01:24.3]} 67... Kc3 {[%clk
0:00:04.1]} 68. Ra6 {[%clk 0:01:25.1]} 68... Kb3 {[%clk 0:00:04.5]} 69. Kf6
{[%clk 0:01:25.8]} 69... Rxg6+ {[%clk 0:00:03.9]} 70. Kxg6 {[%clk 0:01:25.7]}
70... a2 {[%clk 0:00:04.8]} 71. Kf5 {[%clk 0:01:25.2]} 71... Kb2 {[%clk
0:00:05]} 72. Rb6+ {[%clk 0:01:25.3]} 72... Kc2 {[%clk 0:00:05.4]} 73. Rc6+
{[%clk 0:01:25.5]} 73... Kb2 {[%clk 0:00:05.7]} 74. Rb6+ {[%clk 0:01:25.4]}
74... Kc2 {[%clk 0:00:06]} 75. Ra6 {[%clk 0:01:25.3]} 75... Kb2 {[%clk
0:00:06.3]} 76. Ke4 {[%clk 0:01:25.4]} 76... a1=Q {[%clk 0:00:05.7]} 77. Rxa1
{[%clk 0:01:24.5]} 77... Kxa1 {[%clk 0:00:06.6]} 1/2-1/2

[Event "Late-Titled-Tuesday-Blitz-February-06-2024"]
[Site "Chess.com"]
[Date "2024.02.06"]
[Round "10"]
[White "wild3000"]
[Black "cande_francisco"]
[Result "1-0"]
[WhiteElo "2371"]
[BlackElo "2515"]
[TimeControl "180+1"]
[EndTime "15:55:05 PST"]
[Termination "wild3000 won by checkmate"]

1. a3 {[%clk 0:02:59.7]} 1... Nf6 {[%clk 0:02:57.7]} 2. e3 {[%clk 0:02:59.3]}
2... c5 {[%clk 0:02:57.9]} 3. Nf3 {[%clk 0:02:59.1]} 3... g6 {[%clk 0:02:58.2]}
4. d4 {[%clk 0:02:58.3]} 4... cxd4 {[%clk 0:02:55.5]} 5. exd4 {[%clk 0:02:56]}
5... Bg7 {[%clk 0:02:55.9]} 6. Bd3 {[%clk 0:02:53.9]} 6... O-O {[%clk
0:02:56.4]} 7. O-O {[%clk 0:02:53.1]} 7... b6 {[%clk 0:02:56.8]} 8. Re1 {[%clk
0:02:48.1]} 8... Bb7 {[%clk 0:02:56.7]} 9. c4 {[%clk 0:02:48]} 9... d5 {[%clk
0:02:45.7]} 10. c5 {[%clk 0:02:47.1]} 10... Nc6 {[%clk 0:02:36.6]} 11. cxb6
{[%clk 0:02:39.6]} 11... axb6 {[%clk 0:02:34.9]} 12. Nc3 {[%clk 0:02:38.1]}
12... e6 {[%clk 0:02:27.1]} 13. Bg5 {[%clk 0:02:21.7]} 13... h6 {[%clk
0:01:59.6]} 14. Bf4 {[%clk 0:02:20.5]} 14... Nh5 {[%clk 0:01:56.8]} 15. Be3
{[%clk 0:02:17.1]} 15... Qb8 {[%clk 0:01:45.1]} 16. Qd2 {[%clk 0:02:14.7]} 16...
Kh7 {[%clk 0:01:43.2]} 17. Nb5 {[%clk 0:02:01.1]} 17... Na5 {[%clk 0:01:39.3]}
18. Qb4 {[%clk 0:01:50.9]} 18... Nf4 {[%clk 0:01:20.2]} 19. Bf1 {[%clk
0:01:43.5]} 19... Nc4 {[%clk 0:01:15]} 20. b3 {[%clk 0:01:36.8]} 20... Nxe3
{[%clk 0:01:11.5]} 21. fxe3 {[%clk 0:01:37.7]} 21... Nh5 {[%clk 0:01:10.3]} 22.
a4 {[%clk 0:01:28]} 22... Rc8 {[%clk 0:01:04.6]} 23. Rac1 {[%clk 0:01:26.5]}
23... Bf8 {[%clk 0:01:03.7]} 24. Qd2 {[%clk 0:01:20]} 24... Nf6 {[%clk
0:01:03.7]} 25. Bd3 {[%clk 0:01:19]} 25... Nd7 {[%clk 0:00:50.4]} 26. Rf1 {[%clk
0:01:16.4]} 26... f5 {[%clk 0:00:19]} 27. g4 {[%clk 0:01:04.5]} 27... Nf6 {[%clk
0:00:12.3]} 28. gxf5 {[%clk 0:00:59.6]} 28... gxf5 {[%clk 0:00:13.2]} 29. Ne5
{[%clk 0:00:47.9]} 29... Be7 {[%clk 0:00:10.7]} 30. Qf2 {[%clk 0:00:37.2]} 30...
Ba6 {[%clk 0:00:08]} 31. Bxf5+ {[%clk 0:00:35.4]} 31... exf5 {[%clk 0:00:03.8]}
32. Qxf5+ {[%clk 0:00:35.4]} 32... Kh8 {[%clk 0:00:04.6]} 33. Ng6+ {[%clk
0:00:31.2]} 33... Kg7 {[%clk 0:00:03.7]} 34. Nxe7 {[%clk 0:00:31.4]} 34... Rf8
{[%clk 0:00:01.3]} 35. Qg6+ {[%clk 0:00:22.1]} 35... Kh8 {[%clk 0:00:01.8]} 36.
Qxh6+ {[%clk 0:00:18.7]} 36... Nh7 {[%clk 0:00:02.7]} 37. Ng6+ {[%clk
0:00:15.3]} 37... Kg8 {[%clk 0:00:03.3]} 38. Rxf8+ {[%clk 0:00:12.1]} 38... Nxf8
{[%clk 0:00:03.1]} 39. Rc7 {[%clk 0:00:06.9]} 39... Qxc7 {[%clk 0:00:02.3]} 40.
Nxc7 {[%clk 0:00:06.7]} 40... Rc8 {[%clk 0:00:02.2]} 41. Nxf8 {[%clk 0:00:05.8]}
41... Rxc7 {[%clk 0:00:02.5]} 42. Ne6 {[%clk 0:00:05.9]} 42... Rg7+ {[%clk
0:00:03.4]} 43. Qxg7# {[%clk 0:00:05.1]} 1-0